fUSD/lending_fUSD_20240331
["ID","MTS","AMOUNT","RATE_DAILY","PERIOD"]
[321137172,1711907484052,-830.01,0.00057808,120]
[321137173,1711907484062,-500.0,0.00057808,120]
[321137174,1711907484071,-1115.96,0.00057808,120]
[321137175,1711907484082,-722.46,0.00057808,120]
[321137176,1711907484091,-2662.12,0.00057808,120]
[321137177,1711907484100,-714.15,0.00057808,120]
[321137178,1711907484109,-1147.71,0.00057808,120]
[321137179,1711907484119,-1997.29,0.00057808,120]
[321137180,1711907484127,-7535.35,0.00057808,120]
[321137181,1711907484137,-500.0,0.00057808,120]
[321137182,1711907484146,-358.64,0.00057808,120]
[321137183,1711907484155,-500.0,0.00057808,120]
[321137184,1711907484164,-3990.2,0.00057808,120]
[321137185,1711907484172,-2974.84,0.00057808,120]
[321137186,1711907484182,-500.0,0.00057808,7]
[321137187,1711907484190,-624.32,0.00057808,120]
[321137188,1711907484199,-500.0,0.00057808,120]
[321137189,1711907484209,-500.0,0.00057808,120]
[321137190,1711907484218,-500.0,0.00057808,120]
[321137191,1711907484227,-614.73,0.00057808,120]
[321137192,1711907484236,-500.0,0.00057808,120]
[321137193,1711907484245,-500.0,0.00057808,120]
[321137194,1711907484255,-589.87,0.00057808,120]
[321137195,1711907484264,-500.0,0.00057808,120]
[321137196,1711907484273,-500.0,0.00057808,120]
[321137197,1711907484283,-895.49,0.00057808,120]
[321137198,1711907484292,-744.4,0.00057808,120]
[321137199,1711907484301,-472.61,0.0005781,2]
[321137200,1711907484311,-151.0,0.00057854,2]
[321137201,1711907484320,-200.0,0.00057987,2]
[321137202,1711907484329,-500.0,0.00058082,120]
[321137203,1711907484343,-500.0,0.00058082,120]
[321137204,1711907484352,-700.81,0.00058082,120]
[321137205,1711907484361,-500.0,0.00058082,120]
[321137206,1711907484370,-505.88,0.00058082,120]
[321137207,1711907484381,-500.0,0.00058082,120]
[321137208,1711907484391,-500.0,0.00058082,120]
[321137209,1711907484402,-4907.73,0.00058082,120]
[321137210,1711907484412,-1609.87,0.00058082,120]
[321137211,1711907484421,-500.0,0.00058082,50]
[321137212,1711907484432,-500.0,0.00058082,120]
[321137213,1711907484442,-990.64,0.00058082,120]
[321137214,1711907484453,-500.0,0.00058082,120]
[321137215,1711907484464,-500.0,0.00058082,120]
[321137216,1711907484473,-500.0,0.00058082,120]
[321137217,1711907484483,-10457.21,0.00058082,120]
[321137218,1711907484493,-500.0,0.00058082,120]
[321137219,1711907484503,-964.49,0.00058082,120]
[321137220,1711907484513,-500.0,0.00058082,120]
[321137221,1711907484524,-500.0,0.00058082,120]
[321137222,1711907484533,-755.7,0.00058082,120]
[321137223,1711907484543,-500.0,0.00058082,120]
[321137224,1711907484553,-722.56,0.00058082,120]
[321137225,1711907484564,-500.0,0.00058082,120]
[321137226,1711907484573,-500.0,0.00058082,120]
[321137227,1711907484586,-1026.37,0.00058082,120]
[321137228,1711907484597,-1126.75,0.00058082,120]
[321137229,1711907484606,-1688.27,0.00058082,21]
[321137230,1711907484727,-500.0,0.00058082,120]
[321137231,1711907484738,-500.0,0.00058082,120]
[321137232,1711907484748,-660.13,0.00058082,120]
[321137233,1711907484757,-500.0,0.00058082,120]
[321137234,1711907484767,-500.0,0.00058082,120]
[321137235,1711907484777,-500.0,0.00058082,120]
[321137236,1711907484786,-1092.39,0.00058082,120]
[321137237,1711907484795,-14029.33,0.00058082,120]
[321137238,1711907484805,-1975.75,0.00058082,120]
[321137239,1711907484815,-172.71,0.00058082,120]
[321137240,1711907484825,-500.0,0.00058082,120]
[321137241,1711907484834,-500.0,0.00058082,120]
[321137242,1711907484845,-10099.07,0.00058082,120]
[321137243,1711907484854,-546.81,0.00058082,120]
[321137244,1711907484865,-500.0,0.00058082,120]
[321137245,1711907484875,-500.0,0.00058082,120]
[321137246,1711907484885,-500.0,0.00058082,120]
[321137247,1711907484895,-175.05,0.00058082,120]
[321137248,1711907484905,-500.0,0.00058082,120]
[321137249,1711907484915,-500.0,0.00058082,120]
[321137250,1711907484925,-500.0,0.00058082,120]
[321137251,1711907484934,-500.0,0.00058082,120]
[321137252,1711907484943,-5131.78,0.00058082,120]
[321137253,1711907484953,-1715.12,0.00058082,120]
[321137254,1711907484963,-625.67,0.00058082,120]
[321137255,1711907484973,-626.85,0.00058082,120]
[321137256,1711907484983,-947.24,0.00058082,120]
[321137257,1711907484994,-500.0,0.00058082,120]
[321137258,1711907485004,-500.0,0.00058082,120]
[321137259,1711907485015,-500.0,0.00058082,120]
[321137260,1711907485024,-500.0,0.00058082,120]
[321137261,1711907485034,-649.68,0.00058082,120]
[321137262,1711907485044,-500.0,0.00058082,120]
[321137263,1711907485054,-916.81,0.00058082,120]
[321137264,1711907485064,-6434.68,0.00058082,120]
[321137265,1711907485075,-2281.86,0.00058082,120]
[321137266,1711907485085,-500.0,0.00058082,120]
[321137267,1711907485094,-500.0,0.00058082,120]
[321137268,1711907485104,-1094.52,0.00058082,120]
[321137269,1711907485113,-1655.18,0.00058082,120]
[321137270,1711907485124,-531.28,0.00058082,120]
[321137271,1711907485134,-1439.29,0.00058082,120]
[321137272,1711907485144,-500.0,0.00058082,120]
[321137273,1711907485153,-500.0,0.00058082,120]
[321137274,1711907485162,-1210.67,0.00058082,120]
[321137275,1711907485171,-627.19,0.00058082,120]
[321137276,1711907485181,-2658.74,0.00058082,120]
[321137277,1711907485191,-500.0,0.00058082,120]
[321137278,1711907485201,-3592.37,0.00058082,120]
[321137279,1711907485210,-500.0,0.00058082,120]
[321137280,1711907485221,-611.83,0.00058082,120]
[321137281,1711907485231,-500.0,0.00058082,120]
[321137282,1711907485241,-1276.31,0.00058082,120]
[321137283,1711907485252,-500.0,0.00058082,120]
[321137284,1711907485263,-2818.95,0.00058082,120]
[321137285,1711907485273,-577.42,0.00058082,120]
[321137286,1711907485283,-1477.96,0.00058082,120]
[321137287,1711907485293,-1654.56,0.00058082,120]
[321137288,1711907485303,-591.88,0.00058082,120]
[321137289,1711907485313,-811.9,0.00058082,120]
[321137290,1711907485324,-500.0,0.00058082,120]
[321137291,1711907485334,-540.65,0.00058082,120]
[321137292,1711907485349,-1667.23,0.00058082,120]
[321137293,1711907485358,-420.4,0.00058082,120]
[321137294,1711907485369,-500.0,0.00058082,120]
[321137295,1711907485380,-500.0,0.00058082,120]
[321137296,1711907485390,-718.34,0.00058082,120]
[321137297,1711907485400,-358.35318592,0.00058082,120]
[321137298,1711907485410,-1412.62,0.00058082,120]
[321137299,1711907485422,-505.8,0.00058082,120]
[321137300,1711907485432,-2163.44,0.00058082,120]
[321137301,1711907485441,-4640.93,0.00058082,120]
[321137302,1711907485452,-2308.94,0.00058082,120]
[321137303,1711907485461,-4439.46,0.00058082,120]
[321137304,1711907485471,-713.74,0.00058082,120]
[321137305,1711907485480,-574.37,0.00058082,120]
[321137306,1711907485489,-818.49,0.00058082,120]
[321137307,1711907485499,-2084.69,0.00058082,120]
[321137308,1711907485508,-2318.29,0.00058082,120]
[321137309,1711907485517,-1422.03,0.00058082,120]
[321137310,1711907485526,-500.0,0.00058082,120]
[321137311,1711907485536,-500.0,0.00058082,120]
[321137312,1711907485545,-4939.3,0.00058082,120]
[321137313,1711907485554,-500.0,0.00058082,120]
[321137314,1711907485563,-500.0,0.00058082,120]
[321137315,1711907485572,-6488.58,0.00058082,120]
[321137316,1711907485581,-462.8,0.00058082,120]
[321137317,1711907485590,-3218.95,0.00058082,120]
[321137318,1711907485600,-1667.88,0.00058082,120]
[321137319,1711907485609,-677.03,0.00058082,120]
[321137320,1711907485618,-513.19,0.00058082,120]
[321137321,1711907485627,-848.39,0.00058082,120]
[321137322,1711907485637,-2067.47,0.00058082,120]
[321137323,1711907485646,-830.01,0.00058082,120]
[321137324,1711907485655,-500.0,0.00058082,120]
[321137325,1711907485664,-1115.96,0.00058082,120]
[321137326,1711907485674,-722.46,0.00058082,120]
[321137327,1711907485683,-2662.12,0.00058082,120]
[321137328,1711907485692,-714.15,0.00058082,120]
[321137329,1711907485701,-1147.71,0.00058082,120]
[321137330,1711907485709,-1997.29,0.00058082,120]
[321137331,1711907485719,-7535.35,0.00058082,120]
[321137332,1711907485728,-500.0,0.00058082,120]
[321137333,1711907485737,-500.0,0.00058082,120]
[321137334,1711907485747,-3990.2,0.00058082,120]
[321137335,1711907485756,-2974.84,0.00058082,120]
[321137336,1711907485765,-500.0,0.00058082,7]
[321137337,1711907485775,-624.32,0.00058082,120]
[321137338,1711907485784,-500.0,0.00058082,120]
[321137339,1711907485795,-500.0,0.00058082,120]
[321137340,1711907485804,-500.0,0.00058082,120]
[321137341,1711907485814,-614.73,0.00058082,120]
[321137342,1711907485824,-500.0,0.00058082,120]
[321137343,1711907485833,-500.0,0.00058082,120]
[321137344,1711907485843,-500.0,0.00058082,120]
[321137345,1711907485852,-444.6,0.00058082,120]
[321137346,1711907485862,-895.49,0.00058082,120]
[321137347,1711907485871,-744.4,0.00058082,120]
[321137348,1711907485880,-155.5561422,0.00058101,120]
[321137349,1711907485890,-1000.0,0.00058174,120]
[321137350,1711907485899,-151.0,0.00058247,120]
[321137351,1711907485909,-155.39690537,0.00058314,120]
[321137352,1711907485918,-118005.23,0.0005833,6]
[321137353,1711907485927,-4653.81,0.0005833,6]
[321137354,1711907485937,-17643.58,0.0005833,6]
[321137355,1711907485946,-51178.22,0.0005833,6]
[321137356,1711907485956,-500.0,0.00058356,120]
[321137357,1711907485966,-500.0,0.00058356,120]
[321137358,1711907485975,-700.81,0.00058356,120]
[321137359,1711907485985,-571.4,0.00058356,120]
[321137360,1711907485994,-505.88,0.00058356,120]
[321137361,1711907486004,-500.0,0.00058356,120]
[321137362,1711907486013,-500.0,0.00058356,120]
[321137363,1711907486023,-4907.73,0.00058356,120]
[321137364,1711907486033,-1609.87,0.00058356,120]
[321137365,1711907486042,-500.0,0.00058356,50]
[321137366,1711907486051,-619.15587387,0.00058356,120]
[321137367,1711907486061,-990.64,0.00058356,120]
[321137368,1711907486071,-500.0,0.00058356,120]
[321137369,1711907486081,-500.0,0.00058356,120]
[321137370,1711907486091,-500.0,0.00058356,120]
[321137371,1711907486100,-10457.21,0.00058356,120]
[321137372,1711907486109,-584.82,0.00058356,120]
[321137373,1711907486119,-964.49,0.00058356,120]
[321137374,1711907486129,-500.0,0.00058356,120]
[321137375,1711907486139,-500.0,0.00058356,120]
[321137376,1711907486149,-755.7,0.00058356,120]
[321137377,1711907486160,-500.0,0.00058356,120]
[321137378,1711907486170,-722.56,0.00058356,120]
[321137379,1711907486180,-500.0,0.00058356,120]
[321137380,1711907486190,-500.0,0.00058356,120]
[321137381,1711907486200,-1026.37,0.00058356,120]
[321137382,1711907486209,-1126.75,0.00058356,120]
[321137383,1711907486219,-1688.27,0.00058356,21]
[321137384,1711907486229,-500.0,0.00058356,120]
[321137385,1711907486239,-230.95863825,0.00058356,120]
[321137386,1711907486248,-660.13,0.00058356,120]
[321137387,1711907486258,-500.0,0.00058356,120]
[321137388,1711907486267,-500.0,0.00058356,120]
[321137389,1711907486277,-500.0,0.00058356,120]
[321137390,1711907486287,-1092.39,0.00058356,120]
[321137391,1711907486297,-14029.33,0.00058356,120]
[321137392,1711907486306,-1975.75,0.00058356,120]
[321137393,1711907486316,-500.0,0.00058356,120]
[321137394,1711907486325,-500.0,0.00058356,120]
[321137395,1711907486337,-10099.07,0.00058356,120]
[321137396,1711907486349,-546.81,0.00058356,120]
[321137397,1711907486358,-500.0,0.00058356,120]
[321137398,1711907486368,-500.0,0.00058356,120]
[321137399,1711907486378,-500.0,0.00058356,120]
[321137400,1711907486388,-500.0,0.00058356,120]
[321137401,1711907486398,-587.12,0.00058356,120]
[321137402,1711907486409,-500.0,0.00058356,120]
[321137403,1711907486420,-500.0,0.00058356,120]
[321137404,1711907486429,-5131.78,0.00058356,120]
[321137405,1711907486440,-1715.12,0.00058356,120]
[321137406,1711907486450,-626.85,0.00058356,120]
[321137407,1711907486459,-947.24,0.00058356,120]
[321137408,1711907486469,-500.0,0.00058356,120]
[321137409,1711907486480,-500.0,0.00058356,120]
[321137410,1711907486489,-500.0,0.00058356,120]
[321137411,1711907486499,-500.0,0.00058356,120]
[321137412,1711907486509,-649.68,0.00058356,120]
[321137413,1711907486519,-500.0,0.00058356,120]
[321137414,1711907486529,-916.81,0.00058356,120]
[321137415,1711907486538,-6434.68,0.00058356,120]
[321137416,1711907486548,-2281.86,0.00058356,120]
[321137417,1711907486558,-500.0,0.00058356,120]
[321137418,1711907486567,-500.0,0.00058356,120]
[321137419,1711907486578,-1094.52,0.00058356,120]
[321137420,1711907486588,-1655.18,0.00058356,120]
[321137421,1711907486598,-531.28,0.00058356,120]
[321137422,1711907486608,-1439.29,0.00058356,120]
[321137423,1711907486618,-500.0,0.00058356,120]
[321137424,1711907486628,-500.0,0.00058356,120]
[321137425,1711907486637,-1210.67,0.00058356,120]
[321137426,1711907486646,-627.19,0.00058356,120]
[321137427,1711907486656,-2658.74,0.00058356,120]
[321137428,1711907486773,-596.48459702,0.00058356,120]
[321137429,1711907486782,-3592.37,0.00058356,120]
[321137430,1711907486793,-500.0,0.00058356,120]
[321137431,1711907486803,-611.83,0.00058356,120]
[321137432,1711907486813,-500.0,0.00058356,120]
[321137433,1711907486823,-1276.31,0.00058356,120]
[321137434,1711907486833,-500.0,0.00058356,120]
[321137435,1711907486842,-2818.95,0.00058356,120]
[321137436,1711907486852,-577.42,0.00058356,120]
[321137437,1711907486863,-1477.96,0.00058356,120]
[321137438,1711907486873,-1654.56,0.00058356,120]
[321137439,1711907486883,-591.88,0.00058356,120]
[321137440,1711907486892,-811.9,0.00058356,120]
[321137441,1711907486903,-500.0,0.00058356,120]
[321137442,1711907486913,-540.65,0.00058356,120]
[321137443,1711907486923,-1667.23,0.00058356,120]
[321137444,1711907486932,-496.63217448,0.00058356,120]
[321137445,1711907486942,-500.0,0.00058356,120]
[321137446,1711907486952,-718.34,0.00058356,120]
[321137447,1711907486963,-1412.62,0.00058356,120]
[321137448,1711907486972,-505.8,0.00058356,120]
[321137449,1711907486983,-2163.44,0.00058356,120]
[321137450,1711907486992,-4640.93,0.00058356,120]
[321137451,1711907487002,-2308.94,0.00058356,120]
[321137452,1711907487012,-4439.46,0.00058356,120]
[321137453,1711907487022,-713.74,0.00058356,120]
[321137454,1711907487032,-574.37,0.00058356,120]
[321137455,1711907487042,-818.49,0.00058356,120]
[321137456,1711907487052,-2084.69,0.00058356,120]
[321137457,1711907487063,-2318.29,0.00058356,120]
[321137458,1711907487073,-1422.03,0.00058356,120]
[321137459,1711907487083,-500.0,0.00058356,120]
[321137460,1711907487092,-500.0,0.00058356,120]
[321137461,1711907487102,-4939.3,0.00058356,120]
[321137462,1711907487111,-500.0,0.00058356,120]
[321137463,1711907487120,-586.06,0.00058356,120]
[321137464,1711907487130,-6488.58,0.00058356,120]
[321137465,1711907487141,-3218.95,0.00058356,120]
[321137466,1711907487150,-1667.88,0.00058356,120]
[321137467,1711907487160,-677.03,0.00058356,120]
[321137468,1711907487171,-513.19,0.00058356,120]
[321137469,1711907487181,-848.39,0.00058356,120]
[321137470,1711907487191,-2067.47,0.00058356,120]
[321137471,1711907487202,-830.01,0.00058356,120]
[321137472,1711907487212,-500.0,0.00058356,120]
[321137473,1711907487223,-1115.96,0.00058356,120]
[321137474,1711907487232,-722.46,0.00058356,120]
[321137475,1711907487243,-2662.12,0.00058356,120]
[321137476,1711907487253,-714.15,0.00058356,120]
[321137477,1711907487263,-1147.71,0.00058356,120]
[321137478,1711907487273,-1997.29,0.00058356,120]
[321137479,1711907487283,-7535.35,0.00058356,120]
[321137480,1711907487294,-500.0,0.00058356,120]
[321137481,1711907487304,-579.51,0.00058356,120]
[321137482,1711907487315,-3990.2,0.00058356,120]
[321137483,1711907487324,-2974.84,0.00058356,120]
[321137484,1711907487337,-282.19,0.00058356,7]
[321137485,1711907487347,-624.32,0.00058356,120]
[321137486,1711907487357,-555.98,0.00058356,120]
[321137487,1711907487367,-574.87032653,0.00058356,120]
[321137488,1711907487376,-500.0,0.00058356,120]
[321137489,1711907487386,-614.73,0.00058356,120]
[321137490,1711907487395,-500.0,0.00058356,120]
[321137491,1711907487406,-500.0,0.00058356,120]
[321137492,1711907487418,-203.84254071,0.00058356,120]
[321137493,1711907487429,-895.49,0.00058356,120]
[321137494,1711907487439,-744.4,0.00058356,120]
[321137495,1711907487449,-536.78008169,0.000584,59]
[321137496,1711907487460,-1001.7,0.0005846,2]
[321137497,1711907487469,-153.28365447,0.000585,76]
[321137498,1711907487480,-500.0,0.0005863,120]
[321137499,1711907487490,-500.0,0.0005863,120]
[321137500,1711907487499,-700.81,0.0005863,120]
[321137501,1711907487510,-505.88,0.0005863,120]
[321137502,1711907487519,-500.0,0.0005863,120]
[321137503,1711907487530,-500.0,0.0005863,120]
[321137504,1711907487539,-4907.73,0.0005863,120]
[321137505,1711907487549,-1609.87,0.0005863,120]
[321137506,1711907487559,-500.0,0.0005863,50]
[321137507,1711907487568,-990.64,0.0005863,120]
[321137508,1711907487578,-500.0,0.0005863,120]
[321137509,1711907487588,-500.0,0.0005863,120]
[321137510,1711907487597,-500.0,0.0005863,120]
[321137511,1711907487608,-10457.21,0.0005863,120]
[321137512,1711907487617,-964.49,0.0005863,120]
[321137513,1711907487628,-500.0,0.0005863,120]
[321137514,1711907487638,-500.0,0.0005863,120]
[321137515,1711907487648,-755.7,0.0005863,120]
[321137516,1711907487657,-500.0,0.0005863,120]
[321137517,1711907487667,-722.56,0.0005863,120]
[321137518,1711907487676,-500.0,0.0005863,120]
[321137519,1711907487686,-351.03,0.0005863,120]
[321137520,1711907487696,-1026.37,0.0005863,120]
[321137521,1711907487705,-1126.75,0.0005863,120]
[321137522,1711907487715,-1688.27,0.0005863,21]
[321137523,1711907487725,-500.0,0.0005863,120]
[321137524,1711907487735,-660.13,0.0005863,120]
[321137525,1711907487744,-500.0,0.0005863,120]
[321137526,1711907487753,-500.0,0.0005863,120]
[321137527,1711907487762,-500.0,0.0005863,120]
[321137528,1711907487772,-1092.39,0.0005863,120]
[321137529,1711907487781,-14029.33,0.0005863,120]
[321137530,1711907487791,-1975.75,0.0005863,120]
[321137531,1711907487801,-500.0,0.0005863,120]
[321137532,1711907487810,-500.0,0.0005863,120]
[321137533,1711907487825,-10099.07,0.0005863,120]
[321137534,1711907487836,-546.81,0.0005863,120]
[321137535,1711907487846,-500.0,0.0005863,120]
[321137536,1711907487857,-500.0,0.0005863,120]
[321137537,1711907487866,-500.0,0.0005863,120]
[321137538,1711907487876,-500.0,0.0005863,120]
[321137539,1711907487885,-500.0,0.0005863,120]
[321137540,1711907487894,-544.62,0.0005863,120]
[321137541,1711907487903,-5131.78,0.0005863,120]
[321137542,1711907487912,-1715.12,0.0005863,120]
[321137543,1711907487922,-626.85,0.0005863,120]
[321137544,1711907487931,-947.24,0.0005863,120]
[321137545,1711907487940,-500.0,0.0005863,120]
[321137546,1711907487952,-500.0,0.0005863,120]
[321137547,1711907487962,-500.0,0.0005863,120]
[321137548,1711907487972,-500.0,0.0005863,120]
[321137549,1711907487981,-649.68,0.0005863,120]
[321137550,1711907487991,-500.0,0.0005863,120]
[321137551,1711907488000,-916.81,0.0005863,120]
[321137552,1711907488010,-6434.68,0.0005863,120]
[321137553,1711907488019,-2281.86,0.0005863,120]
[321137554,1711907488029,-500.0,0.0005863,120]
[321137555,1711907488039,-500.0,0.0005863,120]
[321137556,1711907488048,-1094.52,0.0005863,120]
[321137557,1711907488058,-1655.18,0.0005863,120]
[321137558,1711907488067,-531.28,0.0005863,120]
[321137559,1711907488077,-1439.29,0.0005863,120]
[321137560,1711907488087,-500.0,0.0005863,120]
[321137561,1711907488096,-500.0,0.0005863,120]
[321137562,1711907488105,-1210.67,0.0005863,120]
[321137563,1711907488114,-627.19,0.0005863,120]
[321137564,1711907488124,-2658.74,0.0005863,120]
[321137565,1711907488133,-3592.37,0.0005863,120]
[321137566,1711907488142,-500.0,0.0005863,120]
[321137567,1711907488152,-611.83,0.0005863,120]
[321137568,1711907488161,-411.12355601,0.0005863,120]
[321137569,1711907488171,-1276.31,0.0005863,120]
[321137570,1711907488180,-643.33340191,0.0005863,120]
[321137571,1711907488189,-2818.95,0.0005863,120]
[321137572,1711907488200,-577.42,0.0005863,120]
[321137573,1711907488210,-1477.96,0.0005863,120]
[321137574,1711907488219,-1654.56,0.0005863,120]
[321137575,1711907488229,-591.88,0.0005863,120]
[321137576,1711907488239,-811.9,0.0005863,120]
[321137577,1711907488249,-500.0,0.0005863,120]
[321137578,1711907488259,-540.65,0.0005863,120]
[321137579,1711907488269,-1667.23,0.0005863,120]
[321137580,1711907488278,-328.82805847,0.0005863,120]
[321137581,1711907488287,-718.34,0.0005863,120]
[321137582,1711907488297,-1412.62,0.0005863,120]
[321137583,1711907488307,-505.8,0.0005863,120]
[321137584,1711907488317,-2163.44,0.0005863,120]
[321137585,1711907488327,-4640.93,0.0005863,120]
[321137586,1711907488338,-2308.94,0.0005863,120]
[321137587,1711907488349,-4439.46,0.0005863,120]
[321137588,1711907488359,-713.74,0.0005863,120]
[321137589,1711907488369,-574.37,0.0005863,120]
[321137590,1711907488379,-818.49,0.0005863,120]
[321137591,1711907488388,-2084.69,0.0005863,120]
[321137592,1711907488398,-2318.29,0.0005863,120]
[321137593,1711907488408,-1422.03,0.0005863,120]
[321137594,1711907488418,-500.0,0.0005863,120]
[321137595,1711907488428,-500.0,0.0005863,120]
[321137596,1711907488438,-4939.3,0.0005863,120]
[321137597,1711907488448,-500.0,0.0005863,120]
[321137598,1711907488457,-6488.58,0.0005863,120]
[321137599,1711907488467,-3218.95,0.0005863,120]
[321137600,1711907488476,-1667.88,0.0005863,120]
[321137601,1711907488486,-677.03,0.0005863,120]
[321137602,1711907488496,-513.19,0.0005863,120]
[321137603,1711907488505,-848.39,0.0005863,120]
[321137604,1711907488515,-2067.47,0.0005863,120]
[321137605,1711907488524,-830.01,0.0005863,120]
[321137606,1711907488533,-500.0,0.0005863,120]
[321137607,1711907488542,-1115.96,0.0005863,120]
[321137608,1711907488658,-722.46,0.0005863,120]
[321137609,1711907488668,-2662.12,0.0005863,120]
[321137610,1711907488678,-714.15,0.0005863,120]
[321137611,1711907488687,-1147.71,0.0005863,120]
[321137612,1711907488697,-1997.29,0.0005863,120]
[321137613,1711907488707,-7535.35,0.0005863,120]
[321137614,1711907488717,-500.0,0.0005863,120]
[321137615,1711907488727,-3990.2,0.0005863,120]
[321137616,1711907488737,-2974.84,0.0005863,120]
[321137617,1711907488746,-624.32,0.0005863,120]
[321137618,1711907488755,-500.0,0.0005863,120]
[321137619,1711907488765,-614.73,0.0005863,120]
[321137620,1711907488776,-377.82126479,0.0005863,120]
[321137621,1711907488785,-500.0,0.0005863,120]
[321137622,1711907488795,-895.49,0.0005863,120]
[321137623,1711907488804,-744.4,0.0005863,120]
[321137624,1711907488815,-302.0,0.00058826,4]
[321137625,1711907488825,-201.02051,0.00058904,120]
[321137626,1711907488835,-500.0,0.00058904,120]
[321137627,1711907488846,-500.0,0.00058904,120]
[321137628,1711907488857,-700.81,0.00058904,120]
[321137629,1711907488867,-505.88,0.00058904,120]
[321137630,1711907488877,-500.0,0.00058904,120]
[321137631,1711907488887,-500.0,0.00058904,120]
[321137632,1711907488897,-4907.73,0.00058904,120]
[321137633,1711907488907,-1609.87,0.00058904,120]
[321137634,1711907488923,-500.0,0.00058904,50]
[321137635,1711907488933,-990.64,0.00058904,120]
[321137636,1711907488943,-500.0,0.00058904,120]
[321137637,1711907488956,-500.0,0.00058904,120]
[321137638,1711907488966,-500.0,0.00058904,120]
[321137639,1711907488976,-10457.21,0.00058904,120]
[321137640,1711907488986,-964.49,0.00058904,120]
[321137641,1711907488996,-638.14,0.00058904,120]
[321137642,1711907489007,-500.0,0.00058904,120]
[321137643,1711907489017,-755.7,0.00058904,120]
[321137644,1711907489027,-500.0,0.00058904,120]
[321137645,1711907489039,-722.56,0.00058904,120]
[321137646,1711907489049,-500.0,0.00058904,120]
[321137647,1711907489068,-1026.37,0.00058904,120]
[321137648,1711907489079,-1126.75,0.00058904,120]
[321137649,1711907489089,-1688.27,0.00058904,21]
[321137650,1711907489100,-500.0,0.00058904,120]
[321137651,1711907489111,-660.13,0.00058904,120]
[321137652,1711907489121,-500.0,0.00058904,120]
[321137653,1711907489131,-500.0,0.00058904,120]
[321137654,1711907489140,-500.0,0.00058904,120]
[321137655,1711907489149,-1092.39,0.00058904,120]
[321137656,1711907489159,-14029.33,0.00058904,120]
[321137657,1711907489169,-1975.75,0.00058904,120]
[321137658,1711907489179,-500.0,0.00058904,120]
[321137659,1711907489188,-472.09,0.00058904,120]
[321137660,1711907489207,-10099.07,0.00058904,120]
[321137661,1711907489217,-546.81,0.00058904,120]
[321137662,1711907489226,-500.0,0.00058904,120]
[321137663,1711907489239,-500.0,0.00058904,120]
[321137664,1711907489248,-500.0,0.00058904,120]
[321137665,1711907489258,-500.0,0.00058904,120]
[321137666,1711907489273,-500.0,0.00058904,120]
[321137667,1711907489282,-5131.78,0.00058904,120]
[321137668,1711907489296,-1715.12,0.00058904,120]
[321137669,1711907489309,-626.85,0.00058904,120]
[321137670,1711907489319,-947.24,0.00058904,120]
[321137671,1711907489330,-500.0,0.00058904,120]